bitfinex/quotes_BTCUSD_20251114
["timestamp","ask_amount","ask_price","bid_price","bid_amount"]
[1763150484782,0.20873349,95816.0,95814.0,0.05602224]
[1763150484998,0.02994,95815.0,95803.0,0.05602224]
[1763150485236,0.11070317,95830.0,95809.0,0.01605]
[1763150485446,0.02938,95829.0,95809.0,0.01605]
[1763150485649,0.7343763,95830.0,95810.0,0.01628699]
[1763150485849,0.02938,95829.0,95815.0,0.20873395]
[1763150486113,0.02938,95829.0,95809.0,0.01605]
[1763150486312,0.20870771,95828.0,95822.0,0.20871856]
[1763150486592,0.20870508,95829.0,95824.0,0.20871558]
[1763150486766,0.11070317,95830.0,95824.0,0.20871558]
[1763150486970,0.10026803,95830.0,95821.0,0.01605]
[1763150487169,0.001,95829.0,95826.0,0.20871113]
[1763150487392,0.10026803,95830.0,95828.0,0.20870564]
[1763150488064,0.09926803,95830.0,95828.0,0.20870564]
[1763150488218,0.0075,95838.0,95821.0,0.04786]
[1763150488219,0.001,95828.0,95821.0,0.04786]
[1763150488424,0.001,95828.0,95827.0,0.20870944]
[1763150488807,0.001,95829.0,95828.0,0.04786]
[1763150489011,0.00843,95844.0,95842.0,0.2086763]
[1763150489454,0.09926803,95845.0,95844.0,0.20867242]
[1763150489946,0.09926803,95845.0,95834.0,0.2086942]
[1763150489947,0.20867479,95843.0,95834.0,0.2086942]
[1763150490154,0.20867479,95843.0,95832.0,0.05602224]
[1763150490356,0.12057803,95845.0,95831.0,0.05602224]
[1763150490357,0.20967354,95844.0,95831.0,0.05602224]
[1763150490559,0.05251118,95843.0,95833.0,0.20869596]
[1763150490772,0.05251118,95843.0,95834.0,0.20869241]
[1763150490967,0.001,95844.0,95832.0,0.05602224]
[1763150491194,0.001,95844.0,95842.0,0.20867612]
[1763150491543,0.10026803,95845.0,95837.0,0.20868766]
[1763150491748,0.09926803,95845.0,95837.0,0.20868766]
[1763150491971,0.001,95843.0,95842.0,0.20867678]
[1763150492203,0.001,95844.0,95840.0,0.20868057]
[1763150492403,0.002,95844.0,95842.0,0.20867582]
[1763150492673,0.001,95844.0,95842.0,0.20867582]
[1763150492876,0.001,95845.0,95843.0,0.20867443]
[1763150493691,0.001,95845.0,95842.0,0.20867448]
[1763150493859,0.001,95845.0,95841.0,0.1498]
[1763150494081,0.20866293,95849.0,95841.0,0.1498]
[1763150494296,0.0075,95852.0,95841.0,0.1498]
[1763150494453,0.001,95844.0,95843.0,0.2086746]
[1763150494893,0.20867678,95842.0,95841.0,0.1498]
[1763150495363,0.22947678,95842.0,95841.0,0.1498]
[1763150495573,0.20867678,95842.0,95841.0,0.1498]
[1763150496416,0.20867442,95844.0,95839.0,0.3584827]
[1763150496617,0.09926803,95846.0,95842.0,0.20867612]
[1763150496840,0.09926803,95846.0,95845.0,0.20867024]
[1763150497041,0.30793768,95846.0,95839.0,0.1498]
[1763150497301,0.30793827,95846.0,95839.0,0.1498]
[1763150497472,0.20868113,95840.0,95839.0,0.1498]
[1763150497674,0.09926803,95846.0,95840.0,0.20867978]
[1763150497902,0.30793612,95846.0,95843.0,0.20867303]
[1763150498238,0.30793612,95846.0,95842.0,0.20867678]
[1763150498445,0.20868113,95840.0,95839.0,0.1498]
[1763150498659,0.22948113,95840.0,95839.0,0.1498]
[1763150499065,0.20868113,95840.0,95839.0,0.1498]
[1763150499726,0.22948113,95840.0,95839.0,0.1498]
[1763150500986,0.09926803,95846.0,95839.0,0.1498]
[1763150500987,0.20867693,95842.0,95839.0,0.1498]
[1763150501114,0.20868113,95840.0,95839.0,0.1498]
[1763150501342,0.20870073,95831.0,95829.0,0.05602224]
[1763150501613,0.09926803,95830.0,95823.0,0.20871745]
[1763150501791,0.09926803,95830.0,95824.0,0.20871456]
[1763150501961,0.09926803,95830.0,95825.0,0.20871365]
[1763150502290,0.09926803,95830.0,95824.0,0.20871186]
[1763150502291,0.00776,95839.0,95823.0,0.01464]
[1763150502493,0.20871236,95826.0,95823.0,0.01464]
[1763150502836,0.20871347,95826.0,95823.0,0.01464]
[1763150503165,0.20871597,95824.0,95821.0,0.05602224]
[1763150503370,0.62367313,95833.0,95821.0,0.05602224]
[1763150503571,0.20870908,95828.0,95824.0,0.20871557]
[1763150503946,0.09926803,95831.0,95824.0,0.20871557]
[1763150504155,0.20870528,95829.0,95826.0,0.20871085]
[1763150504536,0.09926803,95831.0,95821.0,0.07066224]
[1763150504766,0.20869206,95835.0,95821.0,0.07066224]
[1763150504767,0.00776,95839.0,95822.0,0.05124203]
[1763150504976,0.00776,95839.0,95831.0,0.20870073]
[1763150505179,0.001,95831.0,95824.0,0.05602224]
[1763150505379,0.2087138,95825.0,95823.0,0.20582224]
[1763150505583,0.09926803,95830.0,95823.0,0.20582224]
[1763150505855,0.20870765,95828.0,95824.0,0.20871393]
[1763150506059,0.09926803,95830.0,95823.0,0.20582224]
[1763150506060,0.20871597,95824.0,95823.0,0.20582224]
[1763150506284,0.20871597,95824.0,95823.0,0.1498]
[1763150506498,0.30797206,95830.0,95823.0,0.1498]
[1763150506752,0.20870508,95829.0,95826.0,0.20871042]
[1763150506944,0.09926803,95830.0,95823.0,0.1498]
[1763150507430,0.20870989,95827.0,95824.0,0.20871597]
[1763150507658,0.03027,95840.0,95823.0,0.20576061]
[1763150507881,0.20871597,95824.0,95823.0,0.20576061]
[1763150508323,0.001,95830.0,95823.0,0.20576061]
[1763150508536,0.20871597,95824.0,95823.0,0.20576061]
[1763150508751,0.20871597,95824.0,95823.0,0.1498]
[1763150508965,0.22951597,95824.0,95823.0,0.1498]
[1763150509407,0.20871597,95824.0,95823.0,0.1498]
[1763150510754,0.20871424,95825.0,95823.0,0.1498]
[1763150510957,0.22951597,95824.0,95823.0,0.1498]
[1763150511160,0.22951597,95824.0,95813.0,0.20873953]
[1763150511161,0.20873274,95817.0,95813.0,0.20873953]
[1763150511379,0.20872936,95818.0,95813.0,0.20873953]
[1763150511587,0.19797125,95825.0,95812.0,0.05596061]
[1763150511785,0.20872613,95820.0,95816.0,0.20873292]
[1763150511992,0.20872276,95821.0,95817.0,0.20873032]
[1763150512186,0.2087253,95820.0,95817.0,0.20873032]
[1763150512401,0.20872824,95819.0,95816.0,0.20873135]
[1763150512626,0.43676758,95830.0,95812.0,0.05596061]
[1763150512841,0.64547227,95830.0,95826.0,0.20871106]
[1763150513047,0.20870291,95830.0,95826.0,0.20871106]
[1763150513263,0.20871025,95827.0,95823.0,0.2087161]
[1763150513467,0.20871162,95826.0,95819.0,0.20872498]
[1763150513671,0.20871162,95826.0,95821.0,0.2087206]
[1763150513881,0.20870969,95827.0,95824.0,0.20871381]
[1763150514083,0.20871473,95825.0,95819.0,0.20872679]
[1763150514279,0.43676758,95836.0,95814.0,0.05596061]
[1763150514549,0.20971131,95827.0,95823.0,0.20871719]
[1763150514762,0.001,95827.0,95815.0,0.03037]
[1763150514976,0.20971031,95827.0,95824.0,0.20871543]
[1763150515194,0.20871265,95826.0,95822.0,0.2087188]
[1763150515396,0.20871265,95826.0,95822.0,0.2233588]
[1763150516012,0.20871815,95823.0,95822.0,0.01464]
[1763150516222,0.2087161,95824.0,95822.0,0.01464]
[1763150516421,0.20870494,95830.0,95822.0,0.22335815]
[1763150516629,0.20871137,95827.0,95822.0,0.01464]
[1763150516835,0.20871273,95826.0,95823.0,0.20871815]
[1763150517050,0.20870685,95829.0,95826.0,0.20871156]
[1763150517252,0.09926803,95831.0,95822.0,0.01464]
[1763150517461,0.46068089,95863.0,95823.0,0.03037]
[1763150517462,0.44720163,95840.0,95823.0,0.03037]
[1763150517675,0.2086977,95833.0,95829.0,0.20870493]
[1763150517884,0.20870473,95830.0,95823.0,0.20871775]
[1763150518115,0.20871147,95827.0,95822.0,0.01464]
[1763150518319,0.20871815,95823.0,95822.0,0.01464]
[1763150518545,0.20871931,95823.0,95818.0,0.20872892]
[1763150518986,0.20872904,95818.0,95815.0,0.03037]
[1763150519202,0.20873031,95818.0,95814.0,0.2646982]
[1763150519410,0.20872654,95820.0,95815.0,0.20873349]
[1763150519606,0.20872671,95821.0,95814.0,0.05596061]
[1763150519830,0.20872617,95820.0,95814.0,0.05596061]
[1763150520031,0.20872279,95821.0,95817.0,0.2087307]
[1763150520258,0.64547173,95830.0,95818.0,0.20872827]
[1763150520464,0.43676758,95830.0,95815.0,0.05596061]
[1763150520704,0.09926803,95831.0,95827.0,0.20870764]
[1763150520904,0.20869071,95836.0,95832.0,0.20869763]
[1763150521125,0.00776,95839.0,95830.0,0.20870291]
[1763150521126,0.20869187,95837.0,95833.0,0.20869454]
[1763150521331,0.20868566,95838.0,95833.0,0.20869454]
[1763150521555,0.00776,95839.0,95838.0,0.20868549]
[1763150521762,0.20868952,95837.0,95833.0,0.01487]
[1763150522000,0.20868599,95838.0,95834.0,0.2086942]
[1763150522188,0.20868949,95837.0,95833.0,0.22356601]
[1763150522398,0.20869855,95832.0,95831.0,0.05596061]
[1763150522635,0.20870726,95828.0,95827.0,0.05596061]
[1763150523057,0.2086942,95834.0,95831.0,0.20870073]
[1763150523248,0.01959,95832.0,95827.0,0.05596061]
[1763150523436,0.03813,95839.0,95827.0,0.05596061]
[1763150523437,0.22829726,95828.0,95827.0,0.05596061]
[1763150523639,0.22829726,95828.0,95825.0,0.05596061]
[1763150523640,0.20871162,95826.0,95825.0,0.05596061]
[1763150523793,0.2087138,95825.0,95823.0,0.05596061]
[1763150523996,0.20871597,95824.0,95823.0,0.05596061]
[1763150524230,0.22830597,95824.0,95823.0,0.05596061]
[1763150524410,0.20872033,95822.0,95821.0,0.05596061]
[1763150524611,0.20873994,95813.0,95812.0,0.05596061]
[1763150524836,0.20873994,95813.0,95812.0,0.0559927]
[1763150525052,0.2087334,95816.0,95813.0,0.20873934]
[1763150525250,0.20873776,95814.0,95813.0,0.05598973]
[1763150526222,0.22832776,95814.0,95813.0,0.05598973]
[1763150526424,0.20873994,95813.0,95812.0,0.05598973]
[1763150526633,0.20873776,95814.0,95812.0,0.05598973]
[1763150526843,0.20873839,95814.0,95812.0,0.05598973]
[1763150527014,0.30800471,95815.0,95812.0,0.26473156]
[1763150527226,0.09926803,95815.0,95812.0,0.05598973]
[1763150527392,0.20873994,95813.0,95812.0,0.05598973]
[1763150528785,0.20873994,95813.0,95812.0,0.20578973]
[1763150529469,0.22882994,95813.0,95812.0,0.20578973]
[1763150529653,0.20873994,95813.0,95812.0,0.20578973]
[1763150530528,0.20872998,95818.0,95812.0,0.20578973]
[1763150530529,0.04341874,95851.0,95813.0,0.02894]
[1763150530736,0.00839,95843.0,95841.0,0.20867712]
[1763150530942,0.20870291,95830.0,95829.0,0.05598973]
[1763150531179,0.2087059,95829.0,95826.0,0.05598973]
[1763150531352,0.20869807,95833.0,95829.0,0.20870342]
[1763150531558,0.20869186,95836.0,95831.0,0.20869946]
[1763150531760,0.20868648,95838.0,95834.0,0.20869337]
[1763150531966,0.20868648,95838.0,95829.0,0.05598973]
[1763150532183,0.43680681,95840.0,95829.0,0.05598973]
[1763150532385,0.20868786,95837.0,95829.0,0.05598973]
[1763150532587,0.001,95833.0,95829.0,0.05598973]
[1763150532970,0.20870213,95831.0,95829.0,0.05598973]
[1763150533152,0.20868982,95837.0,95829.0,0.05598973]
[1763150533352,0.20869363,95835.0,95831.0,0.20870052]
[1763150533563,0.20869363,95835.0,95829.0,0.05598973]
[1763150533766,0.20869363,95835.0,95829.0,0.26469464]
[1763150534023,0.22879291,95830.0,95829.0,0.05598973]
[1763150534177,0.02009,95830.0,95829.0,0.05598973]
[1763150534593,0.43780681,95840.0,95829.0,0.05598973]
[1763150534594,0.20869432,95834.0,95830.0,0.20870077]
[1763150534800,0.001,95831.0,95830.0,0.20870077]
[1763150535227,0.09926803,95846.0,95840.0,0.20868013]
[1763150535387,0.09926803,95846.0,95820.0,0.44724304]
[1763150535388,0.00776,95854.0,95842.0,0.03611]
[1763150535592,0.43680681,95852.0,95842.0,0.01477]
[1763150535952,0.43680681,95852.0,95837.0,0.26473289]
[1763150535953,0.20867273,95844.0,95837.0,0.05604668]
[1763150536163,0.20867256,95845.0,95837.0,0.05604668]
[1763150536358,0.001,95843.0,95840.0,0.20868054]
[1763150536534,0.001,95843.0,95842.0,0.20867586]
[1763150537364,0.001,95843.0,95836.0,0.09975668]
[1763150537569,0.2086844,95839.0,95833.0,0.05604668]
[1763150537728,0.20869238,95835.0,95833.0,0.05604668]
[1763150538147,0.53607484,95842.0,95832.0,0.05604668]
[1763150538148,0.2287842,95834.0,95832.0,0.05604668]
[1763150538423,0.20869855,95832.0,95831.0,0.05604668]
[1763150538540,0.20870291,95830.0,95829.0,0.05604668]
[1763150538745,0.22879291,95830.0,95828.0,0.05604668]
[1763150538947,0.20870726,95828.0,95827.0,0.05604668]
[1763150539148,0.0075,95831.0,95828.0,0.20870692]
[1763150539359,0.03063,95844.0,95827.0,0.05604668]
[1763150539360,0.2086899,95836.0,95827.0,0.05604668]
[1763150539608,0.09926803,95842.0,95821.0,0.04371]
[1763150539609,0.20867895,95841.0,95833.0,0.20869464]
[1763150539806,0.20867895,95841.0,95836.0,0.20868953]
[1763150540068,0.20867895,95841.0,95837.0,0.20868732]
[1763150540206,0.09926803,95842.0,95835.0,0.01477]
[1763150540418,0.09926803,95842.0,95840.0,0.20867918]
[1763150540627,0.09926803,95842.0,95840.0,0.20868058]
[1763150540844,0.001,95841.0,95840.0,0.20868058]
[1763150541055,0.09926803,95842.0,95840.0,0.20868058]
[1763150541494,0.10026803,95842.0,95840.0,0.20868058]
[1763150541737,0.09926803,95842.0,95840.0,0.20868058]
[1763150542475,0.00776,95851.0,95849.0,0.20866062]
[1763150543154,0.20865081,95854.0,95851.0,0.20865668]
[1763150543320,0.44723868,95860.0,95854.0,0.20865017]
[1763150543487,0.20864024,95859.0,95849.0,0.20866112]
[1763150543689,0.08356,95863.0,95858.0,0.03611]
[1763150543919,0.08356,95863.0,95860.0,0.02134]
[1763150544114,0.20863906,95860.0,95858.0,0.01477]
[1763150544465,0.20863607,95861.0,95858.0,0.01477]
[1763150544584,0.08356,95863.0,95859.0,0.20863923]
[1763150544803,0.29219258,95863.0,95860.0,0.20863759]
[1763150545008,0.2086379,95860.0,95858.0,0.01477]
[1763150545226,0.20863785,95862.0,95858.0,0.01477]
[1763150545428,0.08356,95863.0,95861.0,0.20863512]
[1763150545650,0.08356,95863.0,95858.0,0.01477]
[1763150545851,0.08356,95863.0,95861.0,0.20863326]
[1763150546072,0.08356,95863.0,95858.0,0.01477]
[1763150546278,0.20863827,95860.0,95858.0,0.01477]
[1763150546482,0.08356,95863.0,95858.0,0.01477]
[1763150546660,0.2086396,95860.0,95858.0,0.01477]
[1763150547070,0.20863788,95862.0,95858.0,0.01477]
[1763150547362,0.08456,95863.0,95858.0,0.01477]
[1763150547363,0.20863789,95861.0,95858.0,0.01477]
[1763150547564,0.20863904,95860.0,95858.0,0.01477]
[1763150547954,0.08356,95863.0,95846.0,0.05604668]
[1763150548156,0.08356,95863.0,95849.0,0.20866154]
[1763150548361,0.20863829,95860.0,95846.0,0.05604668]
[1763150548559,0.20864901,95855.0,95846.0,0.05604668]
[1763150548765,0.20865309,95853.0,95850.0,0.20865914]
[1763150549095,0.08356,95863.0,95851.0,0.20865623]
[1763150549421,0.08356,95863.0,95852.0,0.1498]
[1763150549642,0.20864539,95857.0,95852.0,0.1498]
[1763150549841,0.20865065,95854.0,95852.0,0.1498]
[1763150550246,0.20864975,95855.0,95852.0,0.1498]
[1763150550420,0.20865069,95854.0,95852.0,0.1498]
[1763150550633,0.20866154,95849.0,95846.0,0.05604668]
[1763150550814,0.20867242,95844.0,95840.0,0.20868012]
[1763150551020,0.20867495,95843.0,95839.0,0.208682]
[1763150551219,0.20867747,95842.0,95839.0,0.208682]
[1763150551636,0.43680681,95850.0,95836.0,0.05604668]
[1763150551878,0.20867338,95844.0,95840.0,0.20867971]
[1763150552082,0.20867095,95845.0,95840.0,0.20867971]
[1763150552275,0.20868022,95841.0,95836.0,0.05604668]
[1763150552487,0.20866695,95847.0,95839.0,0.20868331]
[1763150552660,0.20866695,95847.0,95842.0,0.20867655]
[1763150552862,0.20866695,95847.0,95841.0,0.2086777]
[1763150552863,0.20867042,95845.0,95841.0,0.2086777]
[1763150553346,0.10609803,95853.0,95836.0,0.05604668]
[1763150553540,0.09926803,95853.0,95851.0,0.20865542]
[1763150553747,0.09926803,95853.0,95851.0,0.20865616]
[1763150553974,0.09926803,95853.0,95850.0,0.22338882]
[1763150554174,0.30792212,95853.0,95850.0,0.01473]
[1763150554405,0.09926803,95853.0,95852.0,0.208655]
[1763150554550,0.20865546,95852.0,95850.0,0.01473]
[1763150554761,0.10026803,95853.0,95851.0,0.20865668]
[1763150554962,0.10026803,95853.0,95850.0,0.22338784]
[1763150555162,0.30892164,95853.0,95850.0,0.22338784]
[1763150555508,0.10026803,95853.0,95850.0,0.01473]
[1763150555681,0.09926803,95853.0,95850.0,0.01473]
[1763150555893,0.09926803,95853.0,95852.0,0.208655]
[1763150556095,0.10026803,95853.0,95852.0,0.208655]
[1763150556481,0.001,95853.0,95852.0,0.208655]
[1763150556683,0.20862679,95865.0,95862.0,0.2086324]
[1763150556955,0.20862453,95866.0,95861.0,0.01473]
[1763150557142,0.20862885,95865.0,95861.0,0.20863497]
[1763150557370,0.20862885,95865.0,95862.0,0.20863179]
[1763150557558,0.21612401,95867.0,95863.0,0.2086309]
[1763150557764,0.001,95865.0,95860.0,0.20863759]
[1763150557939,0.001,95865.0,95852.0,0.208655]
[1763150557940,0.20862889,95864.0,95851.0,0.02973]
[1763150558120,0.209627,95865.0,95862.0,0.20863264]
[1763150558326,0.209627,95865.0,95861.0,0.20863537]
[1763150558541,0.001,95865.0,95851.0,0.238385]
[1763150558747,0.20862909,95864.0,95861.0,0.20863501]
[1763150559174,0.2086514,95854.0,95851.0,0.20865718]
[1763150559520,0.21548718,95851.0,95847.0,0.05604668]
[1763150559781,0.20866589,95847.0,95841.0,0.05604668]
[1763150559971,0.03435221,95850.0,95830.0,0.05604668]
[1763150559972,0.20870073,95831.0,95830.0,0.05604668]
[1763150560177,0.20870073,95831.0,95824.0,0.22344537]
[1763150560178,0.02839,95837.0,95827.0,0.05604668]
[1763150560347,0.2086907,95836.0,95831.0,0.20869983]
[1763150560556,0.00866,95837.0,95831.0,0.20869983]
[1763150560766,0.00866,95837.0,95836.0,0.20868984]
[1763150560967,0.00866,95837.0,95832.0,0.20869645]
[1763150561269,0.00866,95837.0,95834.0,0.20869347]
[1763150561467,0.00866,95837.0,95836.0,0.20868984]
[1763150561678,0.09926803,95838.0,95837.0,0.20868766]
[1763150562417,0.09926803,95838.0,95836.0,0.20868984]
[1763150562635,0.09926803,95838.0,95837.0,0.20868766]
[1763150562844,0.00866,95861.0,95846.0,0.03377]
[1763150563043,0.01043079,95870.0,95857.0,0.20864284]
[1763150563245,0.323,95866.0,95864.0,0.20862757]
[1763150563445,0.30787298,95876.0,95868.0,0.20861954]
[1763150563654,0.09926803,95876.0,95875.0,0.20860495]
[1763150564213,0.5,95883.0,95880.0,0.20859407]
[1763150564801,0.5,95883.0,95882.0,0.20858972]
[1763150565968,0.0002,95890.0,95889.0,0.20857449]
[1763150566193,0.0002,95890.0,95889.0,0.22761449]
[1763150566526,0.0002,95890.0,95889.0,0.35837449]
[1763150566966,0.0012,95890.0,95889.0,0.38810449]
[1763150567169,0.0012,95890.0,95889.0,0.35837449]
[1763150568221,0.0002,95890.0,95889.0,0.35837449]
[1763150568788,0.0012,95890.0,95889.0,0.35837449]
[1763150569444,0.0002,95890.0,95889.0,0.38810449]
[1763150570836,0.0002,95890.0,95889.0,0.35837449]
[1763150576221,0.0002,95890.0,95889.0,0.1498]
[1763150578056,0.0002,95890.0,95889.0,0.35837449]
[1763150578388,0.0002,95890.0,95889.0,0.32223598]
[1763150578992,0.0002,95890.0,95889.0,0.11366149]
[1763150579332,0.0002,95890.0,95889.0,0.32223598]
[1763150580689,0.0002,95890.0,95889.0,0.11366149]
[1763150580918,0.20877232,95890.0,95889.0,0.11366149]
[1763150581119,0.0002,95890.0,95889.0,0.32223598]
[1763150581820,0.22747232,95890.0,95889.0,0.11366149]
[1763150582050,0.20863106,95863.0,95860.0,0.03133291]
[1763150582245,0.20863759,95860.0,95855.0,0.01473]
[1763150582541,0.00746,95861.0,95850.0,0.01444]
[1763150582712,0.00746,95861.0,95844.0,0.01444]
[1763150582713,0.20866887,95846.0,95844.0,0.03133291]
[1763150582883,0.08942965,95845.0,95811.0,0.01444]
[1763150583102,0.0187,95831.0,95812.0,0.20874211]
[1763150583304,0.00757,95830.0,95820.0,0.20872421]
[1763150583574,0.2087135,95826.0,95818.0,0.20872758]
[1763150583725,0.09926803,95824.0,95811.0,0.01444]
[1763150583917,0.09926803,95824.0,95803.0,0.20875981]
[1763150583918,0.09926803,95824.0,95798.0,0.20877262]
[1763150584121,0.20875645,95806.0,95795.0,0.27008093]
[1763150584324,0.01043623,95820.0,95803.0,0.20876116]
[1763150584524,0.20873122,95817.0,95808.0,0.20874932]
[1763150584740,0.20875391,95807.0,95801.0,0.20876409]
[1763150584916,0.20874617,95811.0,95804.0,0.20875808]
[1763150585117,0.2087334,95816.0,95809.0,0.20874681]
[1763150585332,0.2087334,95818.0,95806.0,0.01444]
[1763150585333,0.01043623,95820.0,95806.0,0.01444]
[1763150585583,0.05281451,95819.0,95806.0,0.01444]
[1763150585808,0.0187,95807.0,95791.0,0.01444]
[1763150586015,0.20875737,95805.0,95792.0,0.2087857]
[1763150586220,0.20877004,95800.0,95791.0,0.22322352]
[1763150586427,0.20877628,95797.0,95791.0,0.22322352]
[1763150586623,0.04249874,95799.0,95791.0,0.01444]
[1763150586870,0.00746,95806.0,95800.0,0.20876801]
[1763150587044,0.00746,95806.0,95791.0,0.01444]
[1763150587225,0.00746,95806.0,95801.0,0.20876409]
[1763150587448,0.20875964,95804.0,95799.0,0.20876897]
[1763150587786,0.00746,95806.0,95791.0,0.04439]
[1763150587787,0.001,95799.0,95791.0,0.04439]
[1763150587988,0.001,95799.0,95797.0,0.2087733]
[1763150588961,0.00746,95806.0,95805.0,0.20875737]
[1763150589306,0.00746,95806.0,95802.0,0.2087626]
[1763150589635,0.00746,95806.0,95799.0,0.20876958]
[1763150589814,0.09926803,95809.0,95793.0,0.20878352]
[1763150590080,0.2087705,95799.0,95791.0,0.01444]
[1763150590275,0.20877616,95797.0,95791.0,0.01444]
[1763150590475,0.09926803,95809.0,95791.0,0.01444]
[1763150590680,0.09926803,95809.0,95792.0,0.02841]
[1763150590837,0.002,95806.0,95792.0,0.02841]
[1763150591037,0.001,95806.0,95792.0,0.02841]
[1763150591236,0.20975644,95806.0,95799.0,0.20876895]
[1763150591449,0.001,95806.0,95804.0,0.20875891]
[1763150591859,0.002,95806.0,95791.0,0.01444]
[1763150592055,0.20876094,95804.0,95791.0,0.01444]
[1763150592264,0.20875841,95805.0,95800.0,0.2087665]
[1763150592465,0.20876288,95803.0,95798.0,0.20877198]
[1763150592663,0.20876288,95803.0,95791.0,0.01444]
[1763150592664,0.001,95806.0,95791.0,0.01444]
[1763150592861,0.20877542,95797.0,95791.0,0.01444]
[1763150593081,0.20875737,95805.0,95800.0,0.20876732]
[1763150593313,0.001,95804.0,95803.0,0.20876172]
[1763150593483,0.001,95804.0,95801.0,0.20876396]
[1763150593644,0.001,95806.0,95803.0,0.20876084]
[1763150593850,0.09926803,95809.0,95807.0,0.20875177]
[1763150594510,0.09926803,95809.0,95806.0,0.20875397]
[1763150594709,0.09926803,95809.0,95803.0,0.01533]
[1763150594872,0.001,95806.0,95803.0,0.01533]
[1763150595085,0.01876,95804.0,95788.0,0.20879318]
[1763150595298,0.2087645,95802.0,95794.0,0.20878134]
[1763150595504,0.05355525,95802.0,95787.0,0.20879469]
[1763150595704,0.20877519,95797.0,95790.0,0.20878889]
[1763150595919,0.00768,95801.0,95787.0,0.20879469]
[1763150596080,0.01876,95792.0,95783.0,0.01444]
[1763150596281,0.20880176,95785.0,95780.0,0.0004]
[1763150596531,0.20879654,95788.0,95780.0,0.0004]
[1763150596732,0.20879654,95788.0,95781.0,0.20880815]
[1763150596937,0.2087932,95789.0,95781.0,0.20880847]
[1763150597123,0.02918,95800.0,95780.0,0.20920968]
[1763150597311,0.20978683,95792.0,95788.0,0.20879315]
[1763150597534,0.001,95792.0,95780.0,0.0004]
[1763150597790,0.20878863,95791.0,95788.0,0.20879343]
[1763150598011,0.07266176,95791.0,95790.0,0.20878953]
[1763150598181,0.001,95792.0,95790.0,0.20878953]
[1763150598385,0.09926803,95794.0,95793.0,0.20878352]
[1763150598597,0.09926803,95794.0,95789.0,0.20879069]
[1763150598796,0.09926803,95794.0,95793.0,0.20878352]
[1763150599155,0.09926803,95794.0,95792.0,0.20878545]
[1763150599358,0.10026803,95794.0,95792.0,0.20878545]
[1763150599614,0.10026803,95794.0,95790.0,0.20878988]
[1763150600079,0.09926803,95794.0,95792.0,0.20878533]
[1763150600522,0.2087853,95793.0,95780.0,0.0004]
[1763150600735,0.00757,95793.0,95791.0,0.20878722]
[1763150601616,0.00768,95801.0,95800.0,0.20876826]
[1763150601830,0.00768,95801.0,95798.0,0.20877245]
[1763150602051,0.00768,95801.0,95799.0,0.20877025]
[1763150602704,0.00768,95801.0,95798.0,0.20877245]
[1763150602903,0.00768,95801.0,95799.0,0.20877005]
[1763150603043,0.00768,95801.0,95784.0,0.11366149]
[1763150603258,0.2087931,95789.0,95784.0,0.11366149]
[1763150603463,0.2087931,95789.0,95784.0,0.32246431]
[1763150603464,0.20879569,95788.0,95784.0,0.32246431]
[1763150603647,0.20879569,95788.0,95784.0,0.11366149]
[1763150603852,0.22756096,95785.0,95784.0,0.11366149]
[1763150604085,0.20880968,95781.0,95780.0,0.0004]
[1763150604299,0.22756968,95781.0,95780.0,0.0004]
[1763150604506,0.00757,95783.0,95780.0,0.0004]
[1763150604713,0.3080545,95792.0,95781.0,0.20880968]
[1763150604919,0.09926803,95792.0,95780.0,0.02881]
[1763150605123,0.20879369,95789.0,95783.0,0.20880415]
[1763150605377,0.09926803,95792.0,95780.0,0.02881]
[1763150605577,0.09926803,95792.0,95790.0,0.20878991]
[1763150605802,0.09926803,95792.0,95791.0,0.20878788]
[1763150606087,0.09926803,95792.0,95785.0,0.20880064]
[1763150606088,0.20879096,95790.0,95786.0,0.20879712]
[1763150606331,0.09926803,95792.0,95783.0,0.20880369]
[1763150606504,0.10126803,95792.0,95780.0,0.0004]
[1763150606705,0.20880764,95782.0,95780.0,0.0004]
[1763150606938,0.00757,95781.0,95780.0,0.0004]
[1763150607141,0.02633,95781.0,95780.0,0.0004]
[1763150607859,0.23513968,95781.0,95780.0,0.0004]
[1763150608808,0.23613968,95781.0,95780.0,0.0004]
[1763150609455,0.34185415,95781.0,95780.0,0.0004]
[1763150609913,0.25559961,95781.0,95780.0,0.0004]
[1763150610525,0.01945993,95781.0,95780.0,0.0004]
[1763150610736,0.02045993,95781.0,95780.0,0.0004]
[1763150610984,0.02145993,95781.0,95780.0,0.0004]
[1763150611597,0.04066993,95781.0,95780.0,0.0004]
[1763150611896,0.02145993,95781.0,95780.0,0.20921186]
[1763150612108,0.02145993,95781.0,95780.0,0.0004]
[1763150612336,0.02145993,95781.0,95780.0,0.20921186]
[1763150613421,0.04066993,95781.0,95780.0,0.0004]
[1763150613857,0.08649834,95781.0,95780.0,0.0004]
[1763150614677,0.04066993,95781.0,95780.0,0.0004]
[1763150617847,0.24947961,95781.0,95780.0,0.0004]
[1763150625341,0.57247961,95781.0,95780.0,0.0004]
[1763150629125,0.6197948,95781.0,95780.0,0.0004]
[1763150629338,0.6298248,95781.0,95780.0,0.0004]
[1763150629539,0.4558788,95781.0,95780.0,0.0004]
[1763150630431,0.4578788,95781.0,95780.0,0.0004]
[1763150630816,0.4588788,95781.0,95780.0,0.0004]
[1763150631231,0.49910006,95781.0,95780.0,0.0004]
[1763150634071,0.41546006,95781.0,95780.0,0.0004]
[1763150634285,0.003,95781.0,95780.0,0.0004]
[1763150634490,0.21180968,95781.0,95780.0,0.0004]
[1763150635317,0.20980968,95781.0,95780.0,0.0004]
[1763150635474,0.21080968,95781.0,95780.0,0.0004]
[1763150635675,0.22083968,95781.0,95780.0,0.0004]
[1763150636320,0.54383968,95781.0,95780.0,0.0004]
[1763150636530,0.54283968,95781.0,95780.0,0.0004]
[1763150636937,0.58725842,95781.0,95780.0,0.0004]
[1763150637134,0.59725842,95781.0,95780.0,0.0004]
[1763150641163,1.01054042,95781.0,95780.0,0.0004]
[1763150641336,1.1142098,95781.0,95780.0,0.0004]
[1763150641772,1.1132098,95781.0,95780.0,0.0004]
[1763150642202,0.20885329,95761.0,95760.0,0.0004]
[1763150642407,0.31846132,95761.0,95760.0,0.0004]
[1763150643577,0.09926803,95761.0,95760.0,0.0004]
[1763150643996,0.10960803,95761.0,95760.0,0.0004]
[1763150644487,0.11060803,95761.0,95760.0,0.0004]
[1763150644888,0.10960803,95761.0,95760.0,0.0004]
[1763150645093,0.09926803,95761.0,95760.0,0.0004]
[1763150645299,0.10026803,95761.0,95760.0,0.0004]
[1763150646259,0.11060803,95761.0,95760.0,0.0004]